fUSD/lending_fUSD_20240426
["ID","MTS","AMOUNT","RATE_DAILY","PERIOD"]
[323577295,1714092656366,-500.0,0.00011232,2]
[323577296,1714092656377,-500.0,0.00011232,2]
[323577297,1714092656387,-500.0,0.00011232,2]
[323577298,1714092656398,-604.88,0.00011232,2]
[323577299,1714092656408,-500.0,0.00011232,2]
[323577300,1714092656417,-500.0,0.00011232,2]
[323577301,1714092656427,-500.0,0.00011232,2]
[323577302,1714092656438,-500.0,0.00011232,2]
[323577303,1714092656447,-500.0,0.00011232,2]
[323577304,1714092656458,-500.0,0.00011232,2]
[323577305,1714092656467,-500.0,0.00011232,2]
[323577306,1714092656477,-500.0,0.00011232,2]
[323577307,1714092656486,-500.0,0.00011232,2]
[323577308,1714092656496,-500.0,0.00011232,2]
[323577309,1714092656505,-500.0,0.00011232,2]
[323577310,1714092656514,-500.0,0.00011232,2]
[323577311,1714092656523,-500.0,0.00011232,2]
[323577312,1714092656532,-500.0,0.00011232,2]
[323577313,1714092656541,-584.7,0.00011232,2]
[323577314,1714092656550,-8383.29,0.00011232,2]
[323577315,1714092656559,-518.41867004,0.00011232,2]
[323577316,1714092656568,-500.0,0.00011232,2]
[323577317,1714092656578,-440.87222732,0.00011232,2]
[323577318,1714092656837,-500.0,0.00010958,2]
[323577319,1714092656848,-500.0,0.00010958,2]
[323577320,1714092656857,-500.0,0.00010958,2]
[323577321,1714092656867,-500.0,0.00010958,2]
[323577322,1714092656877,-6008.15,0.00011132,2]
[323577323,1714092656888,-77.08777268,0.00011232,2]
[323577324,1714092656898,-500.0,0.00011232,2]
[323577325,1714092656908,-500.0,0.00011232,2]
[323577326,1714092656918,-500.0,0.00011232,2]
[323577327,1714092656928,-500.0,0.00011232,2]
[323577328,1714092656937,-1104.46,0.00011232,2]
[323577329,1714092656946,-904.42,0.00011232,2]
[323577330,1714092656958,-500.0,0.00011232,2]
[323577331,1714092656967,-500.0,0.00011232,2]
[323577332,1714092656976,-500.0,0.00011232,2]
[323577333,1714092656985,-500.0,0.00011232,2]
[323577334,1714092656995,-500.0,0.00011232,2]
[323577335,1714092657004,-500.0,0.00011232,2]
[323577336,1714092657014,-500.0,0.00011232,2]
[323577337,1714092657025,-548.90147425,0.00011232,2]
[323577338,1714092657034,-500.0,0.00011232,2]
[323577339,1714092657043,-500.0,0.00011232,2]
[323577340,1714092657053,-256.98075307,0.00011232,2]
[323577341,1714092657065,-243.01924693,0.00011232,2]
[323577342,1714092657075,-580.35,0.00011232,2]
[323577343,1714092657085,-500.0,0.00011232,2]
[323577344,1714092657093,-500.0,0.00011232,2]
[323577345,1714092657103,-500.0,0.00011232,2]
[323577346,1714092657112,-500.0,0.00011232,2]
[323577347,1714092657121,-500.0,0.00011232,2]
[323577348,1714092657131,-500.0,0.00011232,2]
[323577349,1714092657140,-500.0,0.00011232,2]
[323577350,1714092657149,-500.0,0.00011232,2]
[323577351,1714092657159,-500.0,0.00011232,2]
[323577352,1714092657173,-500.0,0.00011232,2]
[323577353,1714092657185,-500.0,0.00011232,2]
[323577354,1714092657194,-76.44545307,0.00011232,2]
[323577355,1714092657210,-423.55454693,0.00011232,2]
[323577356,1714092657221,-500.0,0.00011232,2]
[323577357,1714092657230,-552.69,0.00011232,2]
[323577358,1714092657239,-500.0,0.00011232,2]
[323577359,1714092657248,-500.0,0.00011232,2]
[323577360,1714092657257,-500.0,0.00011232,2]
[323577361,1714092657268,-500.0,0.00011232,2]
[323577362,1714092657277,-507.94123038,0.00011232,2]
[323577363,1714092657287,-525.56,0.00011232,2]
[323577364,1714092657297,-500.0,0.00011232,2]
[323577365,1714092657307,-500.0,0.00011232,2]
[323577366,1714092657316,-500.0,0.00011232,2]
[323577367,1714092657325,-500.0,0.00011232,2]
[323577368,1714092657335,-500.0,0.00011232,2]
[323577369,1714092657344,-530.5,0.00011232,2]
[323577370,1714092657353,-500.0,0.00011232,2]
[323577371,1714092657362,-1061.39,0.00011232,2]
[323577372,1714092657372,-500.0,0.00011232,2]
[323577373,1714092657381,-1071.13,0.00011232,2]
[323577374,1714092657390,-500.0,0.00011232,2]
[323577375,1714092657399,-500.0,0.00011232,2]
[323577376,1714092657408,-500.0,0.00011232,2]
[323577377,1714092657418,-500.0,0.00011232,2]
[323577378,1714092657427,-500.0,0.00011232,2]
[323577379,1714092657437,-436.73216846,0.00011232,2]
[323577380,1714092657445,-500.0,0.00011232,2]
[323577381,1714092657458,-500.0,0.00011232,2]
[323577382,1714092657467,-458.50628129,0.00011232,2]
[323577383,1714092657476,-500.0,0.00011232,2]
[323577384,1714092657486,-500.0,0.00011232,2]
[323577385,1714092657495,-500.0,0.00011232,2]
[323577386,1714092657504,-500.0,0.00011232,2]
[323577387,1714092657513,-500.0,0.00011232,2]
[323577388,1714092657523,-500.0,0.00011232,2]
[323577389,1714092657532,-500.0,0.00011232,2]
[323577390,1714092657541,-500.0,0.00011232,2]
[323577391,1714092657550,-500.0,0.00011232,2]
[323577392,1714092657560,-500.0,0.00011232,2]
[323577393,1714092657569,-500.0,0.00011232,2]
[323577394,1714092657578,-500.0,0.00011232,2]
[323577395,1714092657588,-344.99524895,0.00011232,2]
[323577396,1714092657597,-702.97,0.00011232,2]
[323577397,1714092657606,-500.0,0.00011232,2]
[323577398,1714092657615,-500.0,0.00011232,2]
[323577399,1714092657624,-500.0,0.00011232,2]
[323577400,1714092657634,-500.0,0.00011232,2]
[323577401,1714092657643,-500.0,0.00011232,2]
[323577402,1714092657652,-500.0,0.00011232,2]
[323577403,1714092657662,-500.0,0.00011232,2]
[323577404,1714092657671,-500.0,0.00011232,2]
[323577405,1714092657682,-500.0,0.00011232,2]
[323577406,1714092657692,-1026.5,0.00011232,2]
[323577407,1714092657704,-389.28296504,0.00011232,2]
[323577408,1714092657714,-500.0,0.00011232,2]
[323577409,1714092657724,-500.0,0.00011232,2]
[323577410,1714092657733,-500.0,0.00011232,2]
[323577411,1714092657745,-500.0,0.00011232,2]
[323577412,1714092657755,-500.0,0.00011232,2]
[323577413,1714092657766,-500.0,0.00011232,2]
[323577414,1714092657776,-500.0,0.00011232,2]
[323577415,1714092657786,-500.0,0.00011232,2]
[323577416,1714092657796,-859.34,0.00011232,2]
[323577417,1714092657805,-500.0,0.00011232,2]
[323577418,1714092657814,-500.0,0.00011232,2]
[323577419,1714092657824,-938.2,0.00011232,2]
[323577420,1714092657833,-500.0,0.00011232,2]
[323577421,1714092657843,-500.0,0.00011232,2]
[323577422,1714092657852,-500.0,0.00011232,2]
[323577423,1714092657863,-500.0,0.00011232,2]
[323577424,1714092657874,-500.0,0.00011232,2]
[323577425,1714092657884,-993.4,0.00011232,2]
[323577426,1714092657895,-628.42,0.00011232,2]
[323577427,1714092657905,-500.0,0.00011232,2]
[323577428,1714092657914,-1446.65,0.00011232,2]
[323577429,1714092657923,-500.0,0.00011232,2]
[323577430,1714092657932,-500.0,0.00011232,2]
[323577431,1714092657943,-500.0,0.00011232,2]
[323577432,1714092657956,-500.0,0.00011232,2]
[323577433,1714092657965,-500.0,0.00011232,2]
[323577434,1714092657975,-500.0,0.00011232,2]
[323577435,1714092657985,-500.0,0.00011232,2]
[323577436,1714092657995,-1117.09,0.00011232,2]
[323577437,1714092658004,-500.0,0.00011232,2]
[323577438,1714092658014,-500.0,0.00011232,2]
[323577439,1714092658024,-500.0,0.00011232,2]
[323577440,1714092658034,-1321.25,0.00011232,2]
[323577441,1714092658044,-500.0,0.00011232,2]
[323577442,1714092658054,-198.59229289,0.00011232,2]
[323577443,1714092658504,-301.40770711,0.00011232,2]
[323577444,1714092658514,-168.82229291,0.00011232,2]
[323577445,1714092659554,-559.39128703,0.00010957,2]
[323577446,1714092659564,-3175.27660777,0.00010957,2]
[323577447,1714092659574,-157.34709646,0.00010957,2]
[323577448,1714092659583,-805.96605958,0.00010957,2]
[323577449,1714092659592,-500.0,0.00010958,2]
[323577450,1714092659602,-500.0,0.00010958,2]
[323577451,1714092659611,-500.0,0.00010958,2]
[323577452,1714092659620,-500.0,0.00010958,2]
[323577453,1714092659630,-500.0,0.00010958,2]
[323577454,1714092659639,-500.0,0.00010958,2]
[323577455,1714092659649,-500.0,0.00010958,2]
[323577456,1714092659658,-331.17770709,0.00011232,2]
[323577457,1714092659667,-500.0,0.00011232,2]
[323577458,1714092659677,-500.0,0.00011232,2]
[323577459,1714092659687,-500.0,0.00011232,2]
[323577460,1714092659696,-500.0,0.00011232,2]
[323577461,1714092659707,-500.0,0.00011232,2]
[323577462,1714092659716,-882.1,0.00011232,2]
[323577463,1714092659725,-500.0,0.00011232,2]
[323577464,1714092659735,-5967.2,0.00011232,2]
[323577465,1714092659744,-500.0,0.00011232,2]
[323577466,1714092659753,-1032.34,0.00011232,2]
[323577467,1714092659762,-500.0,0.00011232,2]
[323577468,1714092659772,-500.0,0.00011232,2]
[323577469,1714092659781,-500.0,0.00011232,2]
[323577470,1714092659790,-976.43,0.00011232,2]
[323577471,1714092659799,-349.84866205,0.00011232,2]
[323577472,1714092659809,-500.0,0.00011232,2]
[323577473,1714092659818,-891.64,0.00011232,2]
[323577474,1714092659828,-676.81,0.00011232,2]
[323577475,1714092659837,-470.42755201,0.00011232,2]
[323577476,1714092659846,-500.0,0.00011232,2]
[323577477,1714092659857,-500.0,0.00011232,2]
[323577478,1714092659866,-1515.92,0.00011232,2]
[323577479,1714092659875,-1242.66,0.00011232,2]
[323577480,1714092659884,-500.0,0.00011232,2]
[323577481,1714092659893,-500.0,0.00011232,2]
[323577482,1714092659905,-500.0,0.00011232,2]
[323577483,1714092659914,-500.0,0.00011232,2]
[323577484,1714092659924,-500.0,0.00011232,2]
[323577485,1714092659933,-500.0,0.00011232,2]
[323577486,1714092659943,-500.0,0.00011232,2]
[323577487,1714092659954,-500.0,0.00011232,2]
[323577488,1714092659963,-500.0,0.00011232,2]
[323577489,1714092659973,-500.0,0.00011232,2]
[323577490,1714092659982,-1593.65,0.00011232,2]
[323577491,1714092659992,-500.0,0.00011232,2]
[323577492,1714092660001,-500.0,0.00011232,2]
[323577493,1714092660010,-1660.93,0.00011232,2]
[323577494,1714092660020,-500.0,0.00011232,2]
[323577495,1714092660029,-500.0,0.00011232,2]
[323577496,1714092660039,-538.9697917,0.00011232,2]
[323577497,1714092660049,-500.0,0.00011232,2]
[323577498,1714092660059,-1120.75,0.00011232,2]
[323577499,1714092660069,-500.0,0.00011232,2]
[323577500,1714092660078,-500.0,0.00011232,2]
[323577501,1714092660089,-500.0,0.00011232,2]
[323577502,1714092660098,-2819.26,0.00011232,2]
[323577503,1714092660107,-500.0,0.00011232,2]
[323577504,1714092660117,-500.0,0.00011232,2]
[323577505,1714092660126,-633.74,0.00011232,2]
[323577506,1714092660136,-1713.79,0.00011232,2]
[323577507,1714092660145,-532.41,0.00011232,2]
[323577508,1714092660155,-500.0,0.00011232,2]
[323577509,1714092660164,-500.0,0.00011232,2]
[323577510,1714092660178,-855.04,0.00011232,2]
[323577511,1714092660188,-14391.9,0.00011232,2]
[323577512,1714092660197,-618.92,0.00011232,2]
[323577513,1714092660208,-854.01,0.00011232,2]
[323577514,1714092660218,-500.0,0.00011232,2]
[323577515,1714092660227,-500.0,0.00011232,2]
[323577516,1714092660237,-500.0,0.00011232,2]
[323577517,1714092660247,-500.0,0.00011232,2]
[323577518,1714092660257,-756.95,0.00011232,2]
[323577519,1714092660266,-500.0,0.00011232,2]
[323577520,1714092660276,-500.0,0.00011232,2]
[323577521,1714092660285,-500.0,0.00011232,2]
[323577522,1714092660294,-500.0,0.00011232,2]
[323577523,1714092660303,-5224.37,0.00011232,2]
[323577524,1714092660313,-500.0,0.00011232,2]
[323577525,1714092660322,-500.0,0.00011232,2]
[323577526,1714092660331,-613.76,0.00011232,2]
[323577527,1714092660340,-500.0,0.00011232,2]
[323577528,1714092660349,-1152.91,0.00011232,2]
[323577529,1714092660358,-500.0,0.00011232,2]
[323577530,1714092660367,-500.0,0.00011232,2]
[323577531,1714092660377,-150.0,0.00011232,2]
[323577532,1714092660386,-402.38132628,0.00011232,2]
[323577533,1714092660395,-560.95,0.00011232,2]
[323577534,1714092660405,-500.0,0.00011232,2]
[323577535,1714092660415,-840.93,0.00011232,2]
[323577536,1714092660424,-858.0,0.00011232,2]
[323577537,1714092660433,-500.0,0.00011232,2]
[323577538,1714092660443,-500.0,0.00011232,2]
[323577539,1714092660453,-810.87,0.00011232,2]
[323577540,1714092660463,-500.0,0.00011232,2]
[323577541,1714092660472,-500.0,0.00011232,2]
[323577542,1714092660481,-2791.64,0.00011232,2]
[323577543,1714092660491,-500.0,0.00011232,2]
[323577544,1714092660501,-500.0,0.00011232,2]
[323577545,1714092660510,-531.62,0.00011232,2]
[323577546,1714092660519,-500.0,0.00011232,2]
[323577547,1714092660529,-1220.39,0.00011232,2]
[323577548,1714092660538,-500.0,0.00011232,2]
[323577549,1714092660548,-505.71,0.00011232,2]
[323577550,1714092660558,-327.15,0.00011232,2]
[323577551,1714092660567,-578.94640226,0.00011232,2]
[323577552,1714092660598,-500.0,0.00011232,2]
[323577553,1714092660608,-500.0,0.00011232,2]
[323577554,1714092660617,-500.0,0.00011232,2]
[323577555,1714092660627,-500.0,0.00011232,2]
[323577556,1714092660636,-522.78,0.00011232,2]
[323577557,1714092660645,-500.0,0.00011232,2]
[323577558,1714092660655,-500.0,0.00011232,2]
[323577559,1714092660666,-500.0,0.00011232,2]
[323577560,1714092660675,-500.0,0.00011232,2]
[323577561,1714092660685,-500.0,0.00011232,2]
[323577562,1714092660694,-500.0,0.00011232,2]
[323577563,1714092660705,-500.0,0.00011232,2]
[323577564,1714092660716,-500.0,0.00011232,2]
[323577565,1714092660725,-500.0,0.00011232,2]
[323577566,1714092660734,-343.55726,0.00011232,2]
[323577567,1714092660744,-343.55726,0.00011232,2]
[323577568,1714092660753,-343.55726,0.00011232,2]
[323577569,1714092660762,-343.55726,0.00011232,2]
[323577570,1714092660772,-500.0,0.00011232,2]
[323577571,1714092660781,-595.7,0.00011232,2]
[323577572,1714092660791,-1899.97,0.00011232,2]
[323577573,1714092660800,-2400.83,0.00011232,2]
[323577574,1714092660810,-343.55726,0.00011232,2]
[323577575,1714092660819,-500.0,0.00011232,2]
[323577576,1714092660829,-871.89,0.00011232,2]
[323577577,1714092660838,-343.55726,0.00011232,2]
[323577578,1714092660848,-343.55726,0.00011232,2]
[323577579,1714092660858,-343.55726,0.00011232,2]
[323577580,1714092660868,-500.0,0.00011232,2]
[323577581,1714092660878,-3832.46,0.00011232,2]
[323577582,1714092660888,-500.0,0.00011232,2]
[323577583,1714092660898,-929.88,0.00011232,2]
[323577584,1714092660907,-500.0,0.00011232,2]
[323577585,1714092660918,-500.0,0.00011232,2]
[323577586,1714092660927,-1338.28,0.00011232,2]
[323577587,1714092660937,-500.0,0.00011232,2]
[323577588,1714092660947,-500.0,0.00011232,2]
[323577589,1714092660957,-500.0,0.00011232,2]
[323577590,1714092660967,-500.0,0.00011232,2]
[323577591,1714092660977,-500.0,0.00011232,2]
[323577592,1714092660986,-500.0,0.00011232,2]
[323577593,1714092660996,-500.0,0.00011232,2]
[323577594,1714092661006,-500.0,0.00011232,2]
[323577595,1714092661015,-500.0,0.00011232,2]
[323577596,1714092661025,-500.0,0.00011232,2]
[323577597,1714092661035,-500.0,0.00011232,2]
[323577598,1714092661046,-166.10111861,0.00011232,2]
[323577599,1714092661056,-500.0,0.00011232,2]
[323577600,1714092661065,-500.0,0.00011232,2]
[323577601,1714092661075,-500.0,0.00011232,2]
[323577602,1714092661085,-500.0,0.00011232,2]
[323577603,1714092661095,-500.0,0.00011232,2]
[323577604,1714092661107,-500.0,0.00011232,2]
[323577605,1714092661117,-4456.71,0.00011232,2]
[323577606,1714092661126,-500.0,0.00011232,2]
[323577607,1714092661136,-665.85,0.00011232,2]
[323577608,1714092661146,-500.0,0.00011232,2]
[323577609,1714092661156,-1349.75,0.00011232,2]
[323577610,1714092661167,-500.0,0.00011232,2]
[323577611,1714092661180,-500.0,0.00011232,2]
[323577612,1714092661190,-500.0,0.00011232,2]
[323577613,1714092661199,-1058.68,0.00011232,2]
[323577614,1714092661212,-512.58,0.00011232,2]
[323577615,1714092661221,-500.0,0.00011232,2]
[323577616,1714092661231,-500.0,0.00011232,2]
[323577617,1714092661241,-500.0,0.00011232,2]
[323577618,1714092661251,-635.66,0.00011232,2]
[323577619,1714092661260,-786.92,0.00011232,2]
[323577620,1714092661270,-2932.79,0.00011232,2]
[323577621,1714092661279,-500.0,0.00011232,2]
[323577622,1714092661289,-701.63,0.00011232,2]
[323577623,1714092661300,-500.0,0.00011232,2]
[323577624,1714092661309,-848.55,0.00011232,2]
[323577625,1714092661318,-500.0,0.00011232,2]
[323577626,1714092661390,-500.0,0.00011232,2]
[323577627,1714092661399,-549.3,0.00011232,2]
[323577628,1714092661409,-1013.28,0.00011232,2]
[323577629,1714092661418,-339.89179741,0.00011232,2]
[323577630,1714092661427,-500.0,0.00011232,2]
[323577631,1714092661438,-500.0,0.00011232,2]
[323577632,1714092661447,-3343.51,0.00011232,2]
[323577633,1714092661457,-958.7,0.00011232,2]
[323577634,1714092661468,-500.0,0.00011232,2]
[323577635,1714092661477,-500.0,0.00011232,2]
[323577636,1714092661486,-602.43,0.00011232,2]
[323577637,1714092661495,-500.0,0.00011232,2]
[323577638,1714092661504,-500.0,0.00011232,2]
[323577639,1714092661513,-500.0,0.00011232,2]
[323577640,1714092661523,-591.25,0.00011232,2]
[323577641,1714092661532,-500.0,0.00011232,2]
[323577642,1714092661542,-772.06,0.00011232,2]
[323577643,1714092661551,-500.0,0.00011232,2]
[323577644,1714092661560,-601.63,0.00011232,2]
[323577645,1714092661570,-835.78,0.00011232,2]
[323577646,1714092661579,-500.0,0.00011232,2]
[323577647,1714092661588,-1195.87,0.00011232,2]
[323577648,1714092661597,-648.37,0.00011232,2]
[323577649,1714092661607,-1573.98,0.00011232,2]
[323577650,1714092661616,-894.44,0.00011232,2]
[323577651,1714092661626,-500.0,0.00011232,2]
[323577652,1714092661635,-500.0,0.00011232,2]
[323577653,1714092661644,-500.0,0.00011232,2]
[323577654,1714092661654,-500.0,0.00011232,2]
[323577655,1714092661663,-508.63020709,0.00011232,2]
[323577656,1714092661672,-1426.86,0.00011232,2]
[323577657,1714092661681,-500.0,0.00011232,2]
[323577658,1714092661690,-553.99,0.00011232,2]
[323577659,1714092661700,-500.0,0.00011232,2]
[323577660,1714092661712,-1752.16,0.00011232,2]
[323577661,1714092661721,-500.0,0.00011232,2]
[323577662,1714092661731,-500.0,0.00011232,2]
[323577663,1714092661740,-1051.27,0.00011232,2]
[323577664,1714092661750,-500.0,0.00011232,2]
[323577665,1714092661759,-500.0,0.00011232,2]
[323577666,1714092661769,-2273.63,0.00011232,2]
[323577667,1714092661778,-500.0,0.00011232,2]
[323577668,1714092661788,-1153.03,0.00011232,2]
[323577669,1714092661798,-627.46,0.00011232,2]
[323577670,1714092661808,-500.0,0.00011232,2]
[323577671,1714092661817,-500.0,0.00011232,2]
[323577672,1714092661826,-500.0,0.00011232,2]
[323577673,1714092661837,-500.0,0.00011232,2]
[323577674,1714092661846,-680.82,0.00011232,2]
[323577675,1714092661855,-500.0,0.00011232,2]
[323577676,1714092661864,-500.0,0.00011232,2]
[323577677,1714092661874,-500.0,0.00011232,2]
[323577678,1714092661883,-1787.23,0.00011232,2]
[323577679,1714092661893,-3437.63,0.00011232,2]
[323577680,1714092661902,-500.0,0.00011232,2]
[323577681,1714092661912,-500.0,0.00011232,2]
[323577682,1714092661921,-2889.75,0.00011232,2]
[323577683,1714092661930,-151.6899778,0.00011232,2]
[323577684,1714092661940,-579.04,0.00011232,2]
[323577685,1714092661949,-500.0,0.00011232,2]
[323577686,1714092661960,-508.85339855,0.00011232,2]
[323577687,1714092661970,-500.0,0.00011232,2]
[323577688,1714092661979,-613.79,0.00011232,2]
[323577689,1714092661989,-500.0,0.00011232,2]
[323577690,1714092661999,-1012.26,0.00011232,2]
[323577691,1714092662009,-500.0,0.00011232,2]
[323577692,1714092662018,-500.0,0.00011232,2]
[323577693,1714092662028,-500.0,0.00011232,2]
[323577694,1714092662037,-500.0,0.00011232,2]
[323577695,1714092662048,-500.0,0.00011232,2]
[323577696,1714092662057,-796.74,0.00011232,2]
[323577697,1714092662067,-500.0,0.00011232,2]
[323577698,1714092662076,-1206.66,0.00011232,2]
[323577699,1714092662086,-500.0,0.00011232,2]
[323577700,1714092662097,-1130.28,0.00011232,2]
[323577701,1714092662107,-500.0,0.00011232,2]
[323577702,1714092662117,-500.0,0.00011232,2]
[323577703,1714092662128,-500.0,0.00011232,2]
[323577704,1714092662138,-500.0,0.00011232,2]
[323577705,1714092662149,-500.0,0.00011232,2]
[323577706,1714092662158,-500.0,0.00011232,2]
[323577707,1714092662169,-3389.78,0.00011232,2]
[323577708,1714092662180,-1991.26,0.00011232,2]
[323577709,1714092662190,-500.0,0.00011232,2]
[323577710,1714092662200,-1453.44,0.00011232,2]
[323577711,1714092662214,-500.0,0.00011232,2]
[323577712,1714092662223,-500.0,0.00011232,2]
[323577713,1714092662233,-500.0,0.00011232,2]
[323577714,1714092662244,-500.0,0.00011232,2]
[323577715,1714092662254,-619.12,0.00011232,2]
[323577716,1714092662263,-837.22,0.00011232,2]
[323577717,1714092662274,-500.0,0.00011232,2]
[323577718,1714092662283,-675.68,0.00011232,2]
[323577719,1714092662292,-500.0,0.00011232,2]
[323577720,1714092662303,-500.0,0.00011232,2]
[323577721,1714092662312,-1079.22,0.00011232,2]
[323577722,1714092662322,-16028.48,0.00011232,2]
[323577723,1714092662331,-500.0,0.00011232,2]
[323577724,1714092662341,-500.0,0.00011232,2]
[323577725,1714092662350,-500.0,0.00011232,2]
[323577726,1714092662360,-500.0,0.00011232,2]
[323577727,1714092662370,-1140.54,0.00011232,2]
[323577728,1714092662379,-500.0,0.00011232,2]
[323577729,1714092662388,-4624.5,0.00011232,2]
[323577730,1714092662397,-500.0,0.00011232,2]
[323577731,1714092662407,-7842.16,0.00011232,2]
[323577732,1714092662416,-734.08,0.00011232,2]
[323577733,1714092662425,-1058.25,0.00011232,2]
[323577734,1714092662435,-1121.59,0.00011232,2]
[323577735,1714092662444,-500.0,0.00011232,2]
[323577736,1714092662455,-500.0,0.00011232,2]
[323577737,1714092662470,-4229.97,0.00011232,2]
[323577738,1714092662480,-500.0,0.00011232,2]
[323577739,1714092662489,-1259.68,0.00011232,2]
[323577740,1714092662498,-260.7813788,0.00011232,2]
[323577741,1714092662507,-500.0,0.00011232,2]
[323577742,1714092662516,-500.0,0.00011232,2]
[323577743,1714092662526,-520.21,0.00011232,2]
[323577744,1714092662536,-529.6,0.00011232,2]
[323577745,1714092662546,-500.0,0.00011232,2]
[323577746,1714092662555,-500.0,0.00011232,2]
[323577747,1714092662564,-668.54,0.00011232,2]
[323577748,1714092662574,-2752.52,0.00011232,2]
[323577749,1714092662584,-500.0,0.00011232,2]
[323577750,1714092662594,-500.0,0.00011232,2]
[323577751,1714092662603,-500.0,0.00011232,2]
[323577752,1714092662612,-500.0,0.00011232,2]
[323577753,1714092662621,-500.0,0.00011232,2]
[323577754,1714092662631,-500.0,0.00011232,2]
[323577755,1714092662640,-500.0,0.00011232,2]
[323577756,1714092662650,-500.0,0.00011232,2]
[323577757,1714092662659,-150.0,0.00011236,2]
[323577758,1714092662669,-179.09199906,0.0001124,2]
[323577759,1714092662679,-10000.0,0.00011275,2]
[323577760,1714092662689,-10000.0,0.00011279,2]
[323577761,1714092662698,-10000.0,0.00011279,2]
[323577762,1714092662708,-1941.2285558,0.00011289,2]
[323577763,1714092662717,-10013.17220653,0.00011296,2]
[323577764,1714092662727,-10000.0,0.00011299,2]
[323577765,1714092662736,-1000.0,0.000113,2]
[323577766,1714092662745,-168.20136767,0.0001139,2]
[323577767,1714092662755,-179.09199906,0.00011404,2]
[323577768,1714092662766,-215.62185112,0.00011406,2]
[323577769,1714092662775,-5430.31558662,0.00011415,2]
[323577770,1714092662784,-406.8,0.0001142,2]
[323577771,1714092662793,-5529.33377743,0.00011448,2]
[323577772,1714092662821,-936.36925152,0.00011448,2]
[323577773,1714092662841,-263.63284643,0.00011448,2]
[323577774,1714092662861,-3270.66412462,0.00011448,2]
[323577775,1714092662871,-9929.33587538,0.0001145,2]
[323577776,1714092662882,-260.8399934,0.0001145,2]
[323577777,1714092662895,-2424.13227068,0.0001145,2]
[323577778,1714092662905,-1135.0,0.00011497,2]
[323577779,1714092662914,-80.25452932,0.000115,2]
[323577780,1714093280141,609.76,8.219e-05,2]
[323577789,1714093828472,619.62,8.219e-05,2]
[323577796,1714093831948,-155.0,9.646e-05,2]
[323577798,1714093831957,-179.26,9.647e-05,2]
[323577800,1714093831967,-6089.0,9.8e-05,2]
[323577802,1714093831978,-448.67,9.814e-05,2]
[323577804,1714093831988,-154.17,9.836e-05,2]
[323577806,1714093831998,-150.0,9.883e-05,2]
[323577808,1714093832008,-193.76,9.884e-05,2]
[323577810,1714093832017,-206.0,9.884e-05,2]
[323577811,1714093832028,-1923.53207902,9.884e-05,2]
[323577812,1714093832040,-741.37792098,9.884e-05,2]
[323577813,1714093832051,-142.17202902,9.893e-05,2]
[323577816,1714093832063,-11.99797098,9.893e-05,2]
[323577818,1714093832073,-834.47202902,9.939e-05,2]